[Event "Titled Tuesday Blitz August 1 Early 2023"]
[White "Andreev, Konstantin"]
[Black "Liu, Leonardo"]
[WhiteFideId "24239305"]
[BlackFideId "30965780"]
[WhiteElo "2549"]
[BlackElo "2221"]
[Result "1-0"]
[Round "1"]
[TimeControl "180+1"]
[Date "2023.08.01"]
[WhiteClock "0:00:27"]
[BlackClock "0:00:26"]
[Board "216"]

1. e4 {[%clk 0:03:00]}  c5 {[%clk 0:02:59]} 2. Nf3 {[%clk 0:02:59]}  g6 {[%clk 0:02:59]} 3. d4 {[%clk 0:02:59]}  cxd4 {[%clk 0:03:00]} 4. Nxd4 {[%clk 0:03:00]}  Bg7 {[%clk 0:03:00]} 5. Nc3 {[%clk 0:03:00]}  Nc6 {[%clk 0:03:00]} 6. Be3 {[%clk 0:03:00]}  Nf6 {[%clk 0:02:58]} 7. Bc4 {[%clk 0:03:00]}  O-O {[%clk 0:02:55]} 8. f3 {[%clk 0:02:58]}  Qb6 {[%clk 0:02:55]} 9. Nce2 {[%clk 0:01:59]}  Qxb2 {[%clk 0:02:39]} 10. Rb1 {[%clk 0:01:55]}  Qa3 {[%clk 0:02:27]} 11. Kf2 {[%clk 0:01:52]}  Ne5 {[%clk 0:02:18]} 12. Bb3 {[%clk 0:01:50]}  Neg4+ {[%clk 0:01:30]} 13. fxg4 {[%clk 0:01:51]}  Nxe4+ {[%clk 0:01:31]} 14. Kg1 {[%clk 0:01:42]}  d6 {[%clk 0:01:29]} 15. h3 {[%clk 0:01:41]}  b6 {[%clk 0:01:21]} 16. Nb5 {[%clk 0:01:26]}  Qb4 {[%clk 0:01:12]} 17. Nc7 {[%clk 0:01:23]}  Rb8 {[%clk 0:01:12]} 18. Nd5 {[%clk 0:01:22]}  Qb5 {[%clk 0:01:10]} 19. Nf6+ {[%clk 0:01:06]}  Bxf6 {[%clk 0:01:07]} 20. Bxf7+ {[%clk 0:01:02]}  Kxf7 {[%clk 0:01:06]} 21. Rxb5 {[%clk 0:01:00]}  Ba6 {[%clk 0:01:07]} 22. Rb1 {[%clk 0:00:59]}  Bxe2 {[%clk 0:01:06]} 23. Qd5+ {[%clk 0:00:56]}  e6 {[%clk 0:01:04]} 24. Qxe4 {[%clk 0:00:57]}  Rfc8 {[%clk 0:01:03]} 25. Bf4 {[%clk 0:00:54]}  e5 {[%clk 0:01:02]} 26. Qxe2 {[%clk 0:00:53]}  exf4 {[%clk 0:01:02]} 27. Kh2 {[%clk 0:00:54]}  Be5 {[%clk 0:01:02]} 28. Rhf1 {[%clk 0:00:52]}  Kg7 {[%clk 0:00:55]} 29. Kh1 {[%clk 0:00:51]}  Rc3 {[%clk 0:00:53]} 30. Rbd1 {[%clk 0:00:50]}  Rbc8 {[%clk 0:00:54]} 31. Rd2 {[%clk 0:00:50]}  Rg3 {[%clk 0:00:49]} 32. Rfd1 {[%clk 0:00:47]}  Rcc3 {[%clk 0:00:48]} 33. Rxd6 {[%clk 0:00:45]}  Rce3 {[%clk 0:00:42]} 34. Qd2 {[%clk 0:00:44]}  f3 {[%clk 0:00:38]} 35. Rd7+ {[%clk 0:00:41]}  Kf8 {[%clk 0:00:28]} 36. Qb4+ {[%clk 0:00:28]}  Ke8 {[%clk 0:00:26]} 37. Qe7# {[%clk 0:00:27]} 1-0


[Site "https://www.chess.com"]

[Event "Titled Tuesday Blitz August 1 Early 2023"]
[White "Fonseca Manrique, Enrique"]
[Black "Ferro, Mario"]
[WhiteFideId "5114330"]
[BlackFideId "810290"]
[WhiteElo "2548"]
[BlackElo "2220"]
[Result "0-1"]
[Round "1"]
[TimeControl "180+1"]
[Date "2023.08.01"]
[WhiteClock "0:00:01"]
[BlackClock "0:00:26"]
[Board "218"]

1. e4 {[%clk 0:03:00]}  c5 {[%clk 0:02:59]} 2. Nc3 {[%clk 0:03:00]}  d6 {[%clk 0:02:56]} 3. f4 {[%clk 0:02:59]}  g6 {[%clk 0:02:56]} 4. Nf3 {[%clk 0:02:59]}  Bg7 {[%clk 0:02:57]} 5. Bb5+ {[%clk 0:03:00]}  Bd7 {[%clk 0:02:56]} 6. Bc4 {[%clk 0:03:01]}  e6 {[%clk 0:02:46]} 7. O-O {[%clk 0:02:50]}  Bc6 {[%clk 0:02:24]} 8. f5 {[%clk 0:02:42]}  d5 {[%clk 0:02:16]} 9. fxe6 {[%clk 0:02:40]}  fxe6 {[%clk 0:02:16]} 10. exd5 {[%clk 0:02:36]}  exd5 {[%clk 0:02:17]} 11. Qe1+ {[%clk 0:02:29]}  Ne7 {[%clk 0:02:11]} 12. Bb3 {[%clk 0:01:49]}  c4 {[%clk 0:02:10]} 13. Ba4 {[%clk 0:01:43]}  O-O {[%clk 0:02:06]} 14. d4 {[%clk 0:01:27]}  Nf5 {[%clk 0:01:42]} 15. Bg5 {[%clk 0:00:55]}  Qd6 {[%clk 0:01:07]} 16. Rd1 {[%clk 0:00:44]}  Nd7 {[%clk 0:00:59]} 17. Bxc6 {[%clk 0:00:41]}  bxc6 {[%clk 0:00:59]} 18. Ne2 {[%clk 0:00:35]}  Rae8 {[%clk 0:00:57]} 19. Qd2 {[%clk 0:00:35]}  Nf6 {[%clk 0:00:44]} 20. Nc3 {[%clk 0:00:30]}  Ne4 {[%clk 0:00:44]} 21. Nxe4 {[%clk 0:00:21]}  Rxe4 {[%clk 0:00:44]} 22. c3 {[%clk 0:00:20]}  Rfe8 {[%clk 0:00:41]} 23. Rde1 {[%clk 0:00:20]}  h6 {[%clk 0:00:39]} 24. Rxe4 {[%clk 0:00:07]}  Rxe4 {[%clk 0:00:40]} 25. Bxh6 {[%clk 0:00:02]}  Bxh6 {[%clk 0:00:39]} 26. Qc2 {[%clk 0:00:02]}  Ne3 {[%clk 0:00:37]} 27. Qc1 {[%clk 0:00:03]}  Ng4 {[%clk 0:00:27]} 28. Qd1 {[%clk 0:00:01]}  Be3+ {[%clk 0:00:26]} 0-1


[Site "https://www.chess.com"]

[Event "Titled Tuesday Blitz August 1 Early 2023"]
[White "Jahnz, Fabian"]
[Black "Palczert, Matyas"]
[WhiteFideId "4653300"]
[BlackFideId "784958"]
[WhiteElo "2206"]
[BlackElo "2546"]
[Result "1-0"]
[Round "1"]
[TimeControl "180+1"]
[Date "2023.08.01"]
[WhiteClock "0:00:19"]
[BlackClock "0:00:17"]
[Board "221"]

1. e4 {[%clk 0:02:55]}  c5 {[%clk 0:02:57]} 2. Nf3 {[%clk 0:02:55]}  Nf6 {[%clk 0:02:57]} 3. e5 {[%clk 0:02:55]}  Nd5 {[%clk 0:02:57]} 4. c3 {[%clk 0:02:55]}  d6 {[%clk 0:02:52]} 5. exd6 {[%clk 0:02:54]}  e6 {[%clk 0:02:50]} 6. g3 {[%clk 0:02:53]}  Bxd6 {[%clk 0:02:50]} 7. Bg2 {[%clk 0:02:51]}  O-O {[%clk 0:02:50]} 8. O-O {[%clk 0:02:51]}  Nc6 {[%clk 0:02:49]} 9. d4 {[%clk 0:02:51]}  cxd4 {[%clk 0:02:49]} 10. Nxd4 {[%clk 0:02:51]}  Bd7 {[%clk 0:02:42]} 11. Nxc6 {[%clk 0:02:41]}  Bxc6 {[%clk 0:02:41]} 12. Nd2 {[%clk 0:02:42]}  Nf6 {[%clk 0:02:31]} 13. Nf3 {[%clk 0:02:41]}  e5 {[%clk 0:02:27]} 14. Re1 {[%clk 0:02:38]}  Qc7 {[%clk 0:02:24]} 15. Bg5 {[%clk 0:02:36]}  Ne4 {[%clk 0:02:24]} 16. Be3 {[%clk 0:02:36]}  f5 {[%clk 0:02:23]} 17. Nd2 {[%clk 0:02:29]}  Nf6 {[%clk 0:02:15]} 18. Bxc6 {[%clk 0:02:13]}  Qxc6 {[%clk 0:02:14]} 19. Qf3 {[%clk 0:02:13]}  f4 {[%clk 0:01:22]} 20. Qxc6 {[%clk 0:02:06]}  bxc6 {[%clk 0:01:22]} 21. gxf4 {[%clk 0:01:45]}  exf4 {[%clk 0:01:23]} 22. Bd4 {[%clk 0:01:45]}  c5 {[%clk 0:01:05]} 23. Be5 {[%clk 0:01:39]}  Rad8 {[%clk 0:00:55]} 24. Nc4 {[%clk 0:01:37]}  Bxe5 {[%clk 0:00:47]} 25. Rxe5 {[%clk 0:01:37]}  Rfe8 {[%clk 0:00:40]} 26. Rae1 {[%clk 0:01:29]}  Rxe5 {[%clk 0:00:38]} 27. Rxe5 {[%clk 0:01:21]}  f3 {[%clk 0:00:38]} 28. h3 {[%clk 0:00:41]}  h5 {[%clk 0:00:38]} 29. Re3 {[%clk 0:00:32]}  g5 {[%clk 0:00:29]} 30. Rxf3 {[%clk 0:00:31]}  Kg7 {[%clk 0:00:28]} 31. Rf5 {[%clk 0:00:31]}  Kg6 {[%clk 0:00:28]} 32. Rxc5 {[%clk 0:00:31]}  Ne4 {[%clk 0:00:28]} 33. Rc6+ {[%clk 0:00:31]}  Kf5 {[%clk 0:00:27]} 34. Ne3+ {[%clk 0:00:30]}  Ke5 {[%clk 0:00:27]} 35. Kg2 {[%clk 0:00:28]}  g4 {[%clk 0:00:21]} 36. hxg4 {[%clk 0:00:28]}  h4 {[%clk 0:00:21]} 37. Rh6 {[%clk 0:00:27]}  Kf4 {[%clk 0:00:20]} 38. Rxh4 {[%clk 0:00:25]}  Rd2 {[%clk 0:00:20]} 39. g5+ {[%clk 0:00:20]}  Ke5 {[%clk 0:00:17]} 40. Nc4+ {[%clk 0:00:19]} 1-0


[Site "https://www.chess.com"]

[Event "Titled Tuesday Blitz August 1 Early 2023"]
[White "Chor, Kevin"]
[Black "UgarteCesar"]
[WhiteFideId "2090740"]
[WhiteElo "2545"]
[BlackElo "2206"]
[Result "1/2-1/2"]
[Round "1"]
[TimeControl "180+1"]
[Date "2023.08.01"]
[WhiteClock "0:00:24"]
[BlackClock "0:00:27"]
[Board "222"]

1. e4 {[%clk 0:03:00]}  c5 {[%clk 0:02:58]} 2. Nf3 {[%clk 0:03:00]}  Nc6 {[%clk 0:02:58]} 3. d4 {[%clk 0:02:59]}  cxd4 {[%clk 0:02:58]} 4. Nxd4 {[%clk 0:02:59]}  Qb6 {[%clk 0:02:58]} 5. Nb3 {[%clk 0:02:58]}  Nf6 {[%clk 0:02:58]} 6. Bd3 {[%clk 0:02:53]}  e6 {[%clk 0:02:57]} 7. O-O {[%clk 0:02:52]}  a6 {[%clk 0:02:58]} 8. Nc3 {[%clk 0:02:49]}  Qc7 {[%clk 0:02:56]} 9. f4 {[%clk 0:02:43]}  d6 {[%clk 0:02:55]} 10. Qe2 {[%clk 0:02:39]}  Be7 {[%clk 0:02:54]} 11. Bd2 {[%clk 0:02:37]}  b5 {[%clk 0:02:54]} 12. Rae1 {[%clk 0:02:32]}  O-O {[%clk 0:02:54]} 13. g4 {[%clk 0:02:19]}  Bb7 {[%clk 0:02:53]} 14. g5 {[%clk 0:02:15]}  Nd7 {[%clk 0:02:53]} 15. Qg4 {[%clk 0:02:11]}  Rfe8 {[%clk 0:02:52]} 16. h4 {[%clk 0:02:00]}  b4 {[%clk 0:02:34]} 17. Ne2 {[%clk 0:01:58]}  Bf8 {[%clk 0:02:31]} 18. h5 {[%clk 0:01:54]}  a5 {[%clk 0:02:14]} 19. Nbd4 {[%clk 0:01:47]}  Nxd4 {[%clk 0:02:06]} 20. Nxd4 {[%clk 0:01:46]}  Nc5 {[%clk 0:01:56]} 21. f5 {[%clk 0:01:36]}  Nxd3 {[%clk 0:01:52]} 22. cxd3 {[%clk 0:01:37]}  exf5 {[%clk 0:01:51]} 23. Nxf5 {[%clk 0:01:28]}  Re6 {[%clk 0:01:39]} 24. g6 {[%clk 0:01:21]}  hxg6 {[%clk 0:01:36]} 25. Nd4 {[%clk 0:01:21]}  Rae8 {[%clk 0:01:21]} 26. Nxe6 {[%clk 0:01:16]}  Rxe6 {[%clk 0:01:22]} 27. Be3 {[%clk 0:01:04]}  gxh5 {[%clk 0:01:21]} 28. Qxh5 {[%clk 0:01:05]}  Rg6+ {[%clk 0:01:21]} 29. Kf2 {[%clk 0:01:03]}  Qc2+ {[%clk 0:01:17]} 30. Re2 {[%clk 0:00:58]}  Qxd3 {[%clk 0:01:17]} 31. Rh1 {[%clk 0:00:58]}  Rf6+ {[%clk 0:01:00]} 32. Kg3 {[%clk 0:00:55]}  Rg6+ {[%clk 0:00:56]} 33. Kf2 {[%clk 0:00:55]}  Rf6+ {[%clk 0:00:56]} 34. Kg1 {[%clk 0:00:39]}  Qd1+ {[%clk 0:00:40]} 35. Kh2 {[%clk 0:00:35]}  Qd3 {[%clk 0:00:28]} 36. Kg1 {[%clk 0:00:25]}  Qd1+ {[%clk 0:00:27]} 37. Kh2 {[%clk 0:00:24]}  Qd3 {[%clk 0:00:27]} 38. Kg1 {[%clk 0:00:24]} 1/2-1/2


[Site "https://www.chess.com"]

[Event "Titled Tuesday Blitz August 1 Early 2023"]
[White "Kuchava, Ana"]
[Black "Ganiev, Roman"]
[WhiteFideId "13605348"]
[BlackFideId "4131452"]
[WhiteElo "2205"]
[BlackElo "2545"]
[Result "0-1"]
[Round "1"]
[TimeControl "180+1"]
[Date "2023.08.01"]
[WhiteClock "0:00:00"]
[BlackClock "0:00:13"]
[Board "223"]

1. d4 {[%clk 0:02:59]}  Nf6 {[%clk 0:02:57]} 2. Nf3 {[%clk 0:02:58]}  e6 {[%clk 0:02:57]} 3. c4 {[%clk 0:02:57]}  b6 {[%clk 0:02:56]} 4. a3 {[%clk 0:02:51]}  Bb7 {[%clk 0:02:55]} 5. Nc3 {[%clk 0:02:48]}  d5 {[%clk 0:02:55]} 6. cxd5 {[%clk 0:02:48]}  Nxd5 {[%clk 0:02:54]} 7. e3 {[%clk 0:02:44]}  Be7 {[%clk 0:02:53]} 8. Bd3 {[%clk 0:02:41]}  c5 {[%clk 0:02:51]} 9. e4 {[%clk 0:02:38]}  Nxc3 {[%clk 0:02:46]} 10. bxc3 {[%clk 0:02:39]}  Nd7 {[%clk 0:02:42]} 11. O-O {[%clk 0:02:37]}  O-O {[%clk 0:02:42]} 12. Qe2 {[%clk 0:02:34]}  Rc8 {[%clk 0:02:39]} 13. Bb2 {[%clk 0:02:30]}  Qc7 {[%clk 0:02:31]} 14. Rac1 {[%clk 0:02:23]}  Rfd8 {[%clk 0:02:01]} 15. Rfe1 {[%clk 0:02:12]}  cxd4 {[%clk 0:01:54]} 16. cxd4 {[%clk 0:02:11]}  Qb8 {[%clk 0:01:54]} 17. h3 {[%clk 0:02:09]}  Rxc1 {[%clk 0:01:52]} 18. Rxc1 {[%clk 0:02:07]}  Rc8 {[%clk 0:01:51]} 19. Rxc8+ {[%clk 0:02:04]}  Qxc8 {[%clk 0:01:52]} 20. Qc2 {[%clk 0:02:04]}  Qb8 {[%clk 0:01:40]} 21. Nd2 {[%clk 0:01:05]}  h6 {[%clk 0:01:19]} 22. Bb5 {[%clk 0:00:53]}  Nf6 {[%clk 0:01:17]} 23. Bc6 {[%clk 0:00:51]}  Qc8 {[%clk 0:01:11]} 24. Ba4 {[%clk 0:00:50]}  Qd8 {[%clk 0:01:09]} 25. Bc6 {[%clk 0:00:46]}  Qc7 {[%clk 0:00:58]} 26. Ba4 {[%clk 0:00:45]}  Qf4 {[%clk 0:00:58]} 27. f3 {[%clk 0:00:25]}  Nh5 {[%clk 0:00:41]} 28. Nf1 {[%clk 0:00:24]}  Qb8 {[%clk 0:00:32]} 29. Bc6 {[%clk 0:00:22]}  Nf4 {[%clk 0:00:30]} 30. Bxb7 {[%clk 0:00:21]}  Qxb7 {[%clk 0:00:31]} 31. Kf2 {[%clk 0:00:16]}  Ng6 {[%clk 0:00:23]} 32. Qc4 {[%clk 0:00:16]}  Qd7 {[%clk 0:00:22]} 33. Ke3 {[%clk 0:00:14]}  Bg5+ {[%clk 0:00:22]} 34. Kf2 {[%clk 0:00:13]}  h5 {[%clk 0:00:22]} 35. Ne3 {[%clk 0:00:11]}  Bxe3+ {[%clk 0:00:22]} 36. Kxe3 {[%clk 0:00:12]}  Qd8 {[%clk 0:00:23]} 37. Kf2 {[%clk 0:00:10]}  Qh4+ {[%clk 0:00:22]} 38. Kf1 {[%clk 0:00:09]}  Qg5 {[%clk 0:00:22]} 39. Bc1 {[%clk 0:00:08]}  Qg3 {[%clk 0:00:20]} 40. Qe2 {[%clk 0:00:06]}  Qc7 {[%clk 0:00:19]} 41. Qd2 {[%clk 0:00:04]}  Qc4+ {[%clk 0:00:18]} 42. Kf2 {[%clk 0:00:04]}  h4 {[%clk 0:00:18]} 43. Bb2 {[%clk 0:00:04]}  Qb3 {[%clk 0:00:18]} 44. Qc3 {[%clk 0:00:04]}  Qd1 {[%clk 0:00:18]} 45. Qc1 {[%clk 0:00:04]}  Qd3 {[%clk 0:00:18]} 46. Qc3 {[%clk 0:00:05]}  Qxc3 {[%clk 0:00:14]} 47. Bxc3 {[%clk 0:00:05]}  f6 {[%clk 0:00:14]} 48. Ke3 {[%clk 0:00:05]}  Kf7 {[%clk 0:00:15]} 49. Bb4 {[%clk 0:00:05]}  Ke8 {[%clk 0:00:14]} 50. Bd6 {[%clk 0:00:05]}  Kd7 {[%clk 0:00:14]} 51. Bb8 {[%clk 0:00:05]}  a6 {[%clk 0:00:15]} 52. a4 {[%clk 0:00:05]}  Kc6 {[%clk 0:00:14]} 53. Ba7 {[%clk 0:00:05]}  b5 {[%clk 0:00:14]} 54. axb5+ {[%clk 0:00:05]}  axb5 {[%clk 0:00:15]} 55. Bc5 {[%clk 0:00:06]}  e5 {[%clk 0:00:15]} 56. Ba3 {[%clk 0:00:06]}  exd4+ {[%clk 0:00:15]} 57. Kxd4 {[%clk 0:00:06]}  Nf4 {[%clk 0:00:15]} 58. Bf8 {[%clk 0:00:00]}  Ne6+ {[%clk 0:00:13]} 0-1


[Site "https://www.chess.com"]

[Event "Titled Tuesday Blitz August 1 Early 2023"]
[White "Demin, Vladimir"]
[Black "De Souza, Cristiano Gomes"]
[WhiteFideId "4167457"]
[BlackFideId "2151758"]
[WhiteElo "2543"]
[BlackElo "2198"]
[Result "1-0"]
[Round "1"]
[TimeControl "180+1"]
[Date "2023.08.01"]
[WhiteClock "0:01:15"]
[BlackClock "0:00:15"]
[Board "226"]

1. d4 {[%clk 0:03:00]}  Nf6 {[%clk 0:02:59]} 2. Nc3 {[%clk 0:02:58]}  g6 {[%clk 0:02:59]} 3. e4 {[%clk 0:02:57]}  d6 {[%clk 0:03:00]} 4. Nf3 {[%clk 0:02:56]}  Bg7 {[%clk 0:02:59]} 5. Be3 {[%clk 0:02:56]}  c6 {[%clk 0:02:58]} 6. Qd2 {[%clk 0:02:55]}  Ng4 {[%clk 0:02:56]} 7. Bg5 {[%clk 0:02:54]}  h6 {[%clk 0:02:55]} 8. Bh4 {[%clk 0:02:54]}  g5 {[%clk 0:02:55]} 9. Bg3 {[%clk 0:02:54]}  b5 {[%clk 0:02:52]} 10. h3 {[%clk 0:02:52]}  Nf6 {[%clk 0:02:51]} 11. e5 {[%clk 0:02:44]}  dxe5 {[%clk 0:02:50]} 12. Nxe5 {[%clk 0:02:42]}  Nfd7 {[%clk 0:02:39]} 13. Bd3 {[%clk 0:02:23]}  Nxe5 {[%clk 0:02:34]} 14. dxe5 {[%clk 0:02:22]}  Nd7 {[%clk 0:02:33]} 15. Qe3 {[%clk 0:02:10]}  e6 {[%clk 0:02:26]} 16. O-O-O {[%clk 0:02:06]}  Qb6 {[%clk 0:02:24]} 17. Qe2 {[%clk 0:02:05]}  a5 {[%clk 0:02:17]} 18. Ne4 {[%clk 0:02:04]}  Nc5 {[%clk 0:02:04]} 19. Nd6+ {[%clk 0:02:00]}  Ke7 {[%clk 0:02:02]} 20. Kb1 {[%clk 0:01:58]}  Ba6 {[%clk 0:01:55]} 21. f4 {[%clk 0:01:53]}  Nxd3 {[%clk 0:01:48]} 22. Qxd3 {[%clk 0:01:52]}  b4 {[%clk 0:01:47]} 23. Qf3 {[%clk 0:01:52]}  Rhf8 {[%clk 0:01:28]} 24. Rhe1 {[%clk 0:01:35]}  f6 {[%clk 0:01:11]} 25. Qh5 {[%clk 0:01:25]}  gxf4 {[%clk 0:01:00]} 26. Bh4 {[%clk 0:01:20]}  Ra7 {[%clk 0:00:19]} 27. Nf5+ {[%clk 0:01:15]}  exf5 {[%clk 0:00:15]} 28. exf6# {[%clk 0:01:15]} 1-0


[Site "https://www.chess.com"]

[Event "Titled Tuesday Blitz August 1 Early 2023"]
[White "Luxama, Jacques Muller"]
[Black "Al-Tarboush, Ward"]
[WhiteFideId "11900113"]
[BlackFideId "7601450"]
[WhiteElo "2185"]
[BlackElo "2542"]
[Result "0-1"]
[Round "1"]
[TimeControl "180+1"]
[Date "2023.08.01"]
[WhiteClock "0:00:07"]
[BlackClock "0:00:10"]
[Board "227"]

1. e4 {[%clk 0:03:00]}  c5 {[%clk 0:02:59]} 2. Nf3 {[%clk 0:03:00]}  e6 {[%clk 0:02:58]} 3. d4 {[%clk 0:03:00]}  cxd4 {[%clk 0:02:58]} 4. Nxd4 {[%clk 0:03:01]}  a6 {[%clk 0:02:57]} 5. Nc3 {[%clk 0:03:00]}  Qc7 {[%clk 0:02:50]} 6. a3 {[%clk 0:03:00]}  Ne7 {[%clk 0:02:32]} 7. Bd3 {[%clk 0:02:57]}  Nbc6 {[%clk 0:02:31]} 8. Nb3 {[%clk 0:02:54]}  Ng6 {[%clk 0:02:26]} 9. O-O {[%clk 0:02:53]}  Bd6 {[%clk 0:02:27]} 10. h3 {[%clk 0:02:43]}  h5 {[%clk 0:02:15]} 11. Ne2 {[%clk 0:02:39]}  b5 {[%clk 0:02:04]} 12. f4 {[%clk 0:02:37]}  Bb7 {[%clk 0:02:01]} 13. Be3 {[%clk 0:02:32]}  O-O-O {[%clk 0:01:42]} 14. Qe1 {[%clk 0:02:32]}  f5 {[%clk 0:01:42]} 15. Qf2 {[%clk 0:02:30]}  Rdf8 {[%clk 0:01:29]} 16. e5 {[%clk 0:02:28]}  Be7 {[%clk 0:01:29]} 17. Bb6 {[%clk 0:02:22]}  Qb8 {[%clk 0:01:29]} 18. Bc5 {[%clk 0:02:17]}  Bxc5 {[%clk 0:01:20]} 19. Qxc5 {[%clk 0:02:11]}  Ne7 {[%clk 0:01:21]} 20. c4 {[%clk 0:02:07]}  g5 {[%clk 0:01:13]} 21. cxb5 {[%clk 0:02:03]}  axb5 {[%clk 0:01:13]} 22. Bxb5 {[%clk 0:01:45]}  gxf4 {[%clk 0:01:12]} 23. Rac1 {[%clk 0:01:32]}  Rhg8 {[%clk 0:01:07]} 24. Nxf4 {[%clk 0:01:30]}  Kd8 {[%clk 0:01:06]} 25. Rfd1 {[%clk 0:01:18]}  Ke8 {[%clk 0:01:07]} 26. Qd6 {[%clk 0:01:04]}  Qa7+ {[%clk 0:01:04]} 27. Kh2 {[%clk 0:00:59]}  Bc8 {[%clk 0:00:56]} 28. Nc5 {[%clk 0:00:42]}  Qb6 {[%clk 0:00:49]} 29. a4 {[%clk 0:00:36]}  Kf7 {[%clk 0:00:38]} 30. Nxd7 {[%clk 0:00:35]}  Bxd7 {[%clk 0:00:38]} 31. Qxd7 {[%clk 0:00:35]}  Nxe5 {[%clk 0:00:37]} 32. Qd6 {[%clk 0:00:24]}  Qxd6 {[%clk 0:00:36]} 33. Rxd6 {[%clk 0:00:25]}  Rc8 {[%clk 0:00:18]} 34. Re1 {[%clk 0:00:21]}  N7g6 {[%clk 0:00:13]} 35. Nxg6 {[%clk 0:00:19]}  Nxg6 {[%clk 0:00:12]} 36. Rexe6 {[%clk 0:00:19]}  Nf4 {[%clk 0:00:11]} 37. Rf6+ {[%clk 0:00:16]}  Ke7 {[%clk 0:00:12]} 38. Bf1 {[%clk 0:00:11]}  Rc1 {[%clk 0:00:11]} 39. Kg1 {[%clk 0:00:07]}  Nxh3+ {[%clk 0:00:10]} 40. Kh2 {[%clk 0:00:07]}  Nf4 {[%clk 0:00:09]} 41. Kg1 {[%clk 0:00:07]}  Rxg2+ {[%clk 0:00:09]} 42. Kh1 {[%clk 0:00:07]}  Rxf1# {[%clk 0:00:10]} 0-1


[Site "https://www.chess.com"]

[Event "Titled Tuesday Blitz August 1 Early 2023"]
[White "Dinosaurio_1975"]
[Black "le-castor-faineant"]
[WhiteElo "2541"]
[BlackElo "2183"]
[Result "1-0"]
[Round "1"]
[TimeControl "180+1"]
[Date "2023.08.01"]
[WhiteClock "0:00:12"]
[BlackClock "0:00:01"]
[Board "228"]

1. e4 {[%clk 0:03:00]}  e5 {[%clk 0:02:57]} 2. Nf3 {[%clk 0:02:59]}  Nf6 {[%clk 0:02:56]} 3. Nxe5 {[%clk 0:02:58]}  d6 {[%clk 0:02:56]} 4. Nd3 {[%clk 0:02:58]}  Nxe4 {[%clk 0:02:57]} 5. Qe2 {[%clk 0:02:58]}  Qe7 {[%clk 0:02:55]} 6. Nf4 {[%clk 0:02:58]}  c6 {[%clk 0:02:53]} 7. d4 {[%clk 0:02:55]}  d5 {[%clk 0:02:52]} 8. h4 {[%clk 0:02:54]}  Nf6 {[%clk 0:02:26]} 9. f3 {[%clk 0:02:48]}  h5 {[%clk 0:02:20]} 10. Qxe7+ {[%clk 0:02:34]}  Bxe7 {[%clk 0:02:20]} 11. Bd3 {[%clk 0:02:35]}  g6 {[%clk 0:02:12]} 12. Kf2 {[%clk 0:02:32]}  O-O {[%clk 0:02:08]} 13. c3 {[%clk 0:02:32]}  Re8 {[%clk 0:02:05]} 14. Nd2 {[%clk 0:02:25]}  Nbd7 {[%clk 0:02:04]} 15. Nf1 {[%clk 0:02:21]}  Nf8 {[%clk 0:02:03]} 16. g3 {[%clk 0:02:08]}  Ne6 {[%clk 0:02:02]} 17. Ne2 {[%clk 0:02:07]}  Bd7 {[%clk 0:01:57]} 18. Bd2 {[%clk 0:02:05]}  Kg7 {[%clk 0:01:57]} 19. Re1 {[%clk 0:02:04]}  c5 {[%clk 0:01:55]} 20. dxc5 {[%clk 0:01:57]}  Bxc5+ {[%clk 0:01:45]} 21. Be3 {[%clk 0:01:57]}  Bc6 {[%clk 0:01:34]} 22. Bxc5 {[%clk 0:01:43]}  Nxc5 {[%clk 0:01:35]} 23. Bc2 {[%clk 0:01:44]}  Na4 {[%clk 0:01:27]} 24. Bxa4 {[%clk 0:01:33]}  Bxa4 {[%clk 0:01:28]} 25. Nd2 {[%clk 0:01:33]}  Bb5 {[%clk 0:01:23]} 26. Nd4 {[%clk 0:01:31]}  Bd3 {[%clk 0:01:21]} 27. Re3 {[%clk 0:01:29]}  Rxe3 {[%clk 0:01:18]} 28. Kxe3 {[%clk 0:01:29]}  Ba6 {[%clk 0:01:19]} 29. Re1 {[%clk 0:01:23]}  Re8+ {[%clk 0:01:20]} 30. Kf2 {[%clk 0:01:23]}  Rxe1 {[%clk 0:01:19]} 31. Kxe1 {[%clk 0:01:24]}  Nd7 {[%clk 0:01:17]} 32. Kf2 {[%clk 0:01:23]}  Ne5 {[%clk 0:01:14]} 33. Ke3 {[%clk 0:01:22]}  Kf6 {[%clk 0:01:04]} 34. a4 {[%clk 0:00:53]}  Nc4+ {[%clk 0:00:57]} 35. Nxc4 {[%clk 0:00:53]}  dxc4 {[%clk 0:00:58]} 36. Ke4 {[%clk 0:00:47]}  b6 {[%clk 0:00:54]} 37. Kf4 {[%clk 0:00:25]}  Bb7 {[%clk 0:00:51]} 38. Nb5 {[%clk 0:00:24]}  a6 {[%clk 0:00:48]} 39. Nd6 {[%clk 0:00:23]}  Bd5 {[%clk 0:00:48]} 40. Nc8 {[%clk 0:00:18]}  b5 {[%clk 0:00:45]} 41. a5 {[%clk 0:00:18]}  Ke6 {[%clk 0:00:38]} 42. g4 {[%clk 0:00:19]}  f6 {[%clk 0:00:30]} 43. gxh5 {[%clk 0:00:17]}  gxh5 {[%clk 0:00:31]} 44. Nb6 {[%clk 0:00:15]}  Bc6 {[%clk 0:00:29]} 45. Nc8 {[%clk 0:00:13]}  Bd5 {[%clk 0:00:29]} 46. Nb6 {[%clk 0:00:10]}  Bc6 {[%clk 0:00:29]} 47. Ke3 {[%clk 0:00:10]}  Ke5 {[%clk 0:00:23]} 48. Nc8 {[%clk 0:00:10]}  Bd5 {[%clk 0:00:07]} 49. Ne7 {[%clk 0:00:09]}  Bb7 {[%clk 0:00:06]} 50. Ng6+ {[%clk 0:00:09]}  Kf5 {[%clk 0:00:06]} 51. Nf4 {[%clk 0:00:09]}  Bc6 {[%clk 0:00:06]} 52. Nxh5 {[%clk 0:00:09]}  Be8 {[%clk 0:00:05]} 53. Ng3+ {[%clk 0:00:09]}  Kg6 {[%clk 0:00:05]} 54. f4 {[%clk 0:00:10]}  f5 {[%clk 0:00:04]} 55. Kd4 {[%clk 0:00:10]}  Bc6 {[%clk 0:00:03]} 56. Kc5 {[%clk 0:00:10]}  Bb7 {[%clk 0:00:04]} 57. Kb6 {[%clk 0:00:11]}  Bc8 {[%clk 0:00:05]} 58. Kc7 {[%clk 0:00:11]}  Be6 {[%clk 0:00:05]} 59. Kb7 {[%clk 0:00:11]}  Bd5+ {[%clk 0:00:02]} 60. Kxa6 {[%clk 0:00:11]}  Bc6 {[%clk 0:00:01]} 61. Kb6 {[%clk 0:00:12]} 1-0


[Site "https://www.chess.com"]